lending/lending_fUSD_20250121
["ID","MTS","AMOUNT","RATE_DAILY","PERIOD"]
[349806822,1737437450198,-933.06009168,0.0002192,2]
[349806823,1737437450207,-933.06009168,0.0002192,2]
[349806824,1737437450216,-933.06009168,0.0002192,2]
[349806825,1737437450226,-933.06009168,0.0002192,2]
[349806826,1737437450235,-933.06009168,0.0002192,2]
[349806827,1737437450243,-933.06009168,0.0002192,2]
[349806828,1737437450253,-933.06009168,0.0002192,2]
[349806829,1737437450263,-933.06009168,0.0002192,2]
[349806830,1737437450272,-933.06009168,0.0002192,2]
[349806831,1737437450281,-933.06009168,0.0002192,2]
[349806832,1737437450290,-933.06,0.0002192,2]
[349806833,1737437450299,-1060.16570752,0.0002192,2]
[349806834,1737437450308,-1060.16570752,0.0002192,2]
[349806835,1737437450317,-1060.16570752,0.0002192,2]
[349806836,1737437450327,-1060.16570752,0.0002192,2]
[349806837,1737437450337,-1060.16570752,0.0002192,2]
[349806838,1737437450346,-1060.16570752,0.0002192,2]
[349806839,1737437450355,-1060.16570752,0.0002192,2]
[349806840,1737437450365,-1060.16570752,0.0002192,2]
[349806841,1737437450374,-1060.16570752,0.0002192,2]
[349806842,1737437450383,-1060.16570752,0.0002192,2]
[349806843,1737437450393,-1060.16570752,0.0002192,2]
[349806844,1737437450402,-1060.16570752,0.0002192,2]
[349806845,1737437450410,-1060.16570752,0.0002192,2]
[349806846,1737437450419,-1060.16570752,0.0002192,2]
[349806847,1737437450428,-1060.16570752,0.0002192,2]
[349806848,1737437450437,-1060.16570752,0.0002192,2]
[349806849,1737437450446,-1060.16570752,0.0002192,2]
[349806850,1737437450455,-1060.16570752,0.0002192,2]
[349806851,1737437450464,-1060.16570752,0.0002192,2]
[349806852,1737437450472,-1060.16,0.0002192,2]
[349806853,1737437450481,-2473.71998421,0.0002192,2]
[349806854,1737437450490,-2473.71998421,0.0002192,2]
[349806855,1737437450499,-2473.71998421,0.0002192,2]
[349806856,1737437450507,-2473.71998421,0.0002192,2]
[349806857,1737437450517,-2473.71998421,0.0002192,2]
[349806858,1737437450526,-2473.71998421,0.0002192,2]
[349806859,1737437450534,-2473.71998421,0.0002192,2]
[349806860,1737437450543,-2473.71998421,0.0002192,2]
[349806861,1737437450552,-2473.71998421,0.0002192,2]
[349806862,1737437450561,-2473.71998421,0.0002192,2]
[349806863,1737437450570,-2473.71998421,0.0002192,2]
[349806864,1737437450579,-2473.71998421,0.0002192,2]
[349806865,1737437450588,-2473.71998421,0.0002192,2]
[349806866,1737437450597,-2473.71998421,0.0002192,2]
[349806867,1737437450606,-2473.71998421,0.0002192,2]
[349806868,1737437450615,-2473.71998421,0.0002192,2]
[349806869,1737437450624,-2473.71998421,0.0002192,2]
[349806870,1737437450632,-2473.71998421,0.0002192,2]
[349806871,1737437450642,-2473.71998421,0.0002192,2]
[349806872,1737437450651,-2473.71,0.0002192,2]
[349806873,1737437450660,-537.75378843,0.0002192,2]
[349806874,1737437450669,-537.75378843,0.0002192,2]
[349806875,1737437450678,-537.75378843,0.0002192,2]
[349806876,1737437450687,-537.75378843,0.0002192,2]
[349806877,1737437450696,-537.75378843,0.0002192,2]
[349806878,1737437450705,-537.75378843,0.0002192,2]
[349806879,1737437450714,-537.75378843,0.0002192,2]
[349806880,1737437450723,-537.75378843,0.0002192,2]
[349806881,1737437450732,-537.75378843,0.0002192,2]
[349806882,1737437450742,-537.75378843,0.0002192,2]
[349806883,1737437450751,-537.75378843,0.0002192,2]
[349806884,1737437450760,-537.75378843,0.0002192,2]
[349806885,1737437450769,-537.75378843,0.0002192,2]
[349806886,1737437450777,-537.75378843,0.0002192,2]
[349806887,1737437450787,-537.75378843,0.0002192,2]
[349806888,1737437450797,-537.75378843,0.0002192,2]
[349806889,1737437450807,-537.75378843,0.0002192,2]
[349806890,1737437450816,-537.75378843,0.0002192,2]
[349806891,1737437450825,-537.75378843,0.0002192,2]
[349806892,1737437450834,-537.75,0.0002192,2]
[349806893,1737437450843,-1254.75883966,0.0002192,2]
[349806894,1737437450853,-1254.75883966,0.0002192,2]
[349806895,1737437450862,-1254.75883966,0.0002192,2]
[349806896,1737437450872,-1254.75883966,0.0002192,2]
[349806897,1737437450882,-1254.75883966,0.0002192,2]
[349806898,1737437450891,-1254.75883966,0.0002192,2]
[349806899,1737437450900,-1254.75883966,0.0002192,2]
[349806900,1737437450909,-1254.75883966,0.0002192,2]
[349806901,1737437450918,-1254.75883966,0.0002192,2]
[349806902,1737437450928,-1254.75883966,0.0002192,2]
[349806903,1737437450937,-1254.75883966,0.0002192,2]
[349806904,1737437450946,-1254.75883966,0.0002192,2]
[349806905,1737437450955,-1254.75883966,0.0002192,2]
[349806906,1737437450964,-1254.75883966,0.0002192,2]
[349806907,1737437450972,-1254.75883966,0.0002192,2]
[349806908,1737437450981,-1254.75883966,0.0002192,2]
[349806909,1737437450990,-1254.75883966,0.0002192,2]
[349806910,1737437450999,-1254.75883966,0.0002192,2]
[349806911,1737437451010,-1254.75883966,0.0002192,2]
[349806912,1737437451019,-1254.75,0.0002192,2]
[349806913,1737437451028,-39538.68693111,0.00021934,2]
[349806914,1737437451037,-150.0,0.00021937,2]
[349806915,1737437451046,-57431.35573112,0.0002195,2]
[349806916,1737437451055,-3529.01,0.00021959,7]
[349806917,1737437451064,-3529.01,0.00021959,7]
[349806918,1737437451073,-150.0,0.00021959,2]
[349806919,1737437451082,-300.0,0.00021963,2]
[349806920,1737437451092,-400.0,0.0002197,2]
[349806921,1737437451101,-478.27153247,0.0002197,2]
[349806922,1737437451111,-150.0,0.00021973,4]
[349806923,1737437451120,-150.0,0.00021973,4]
[349806924,1737437451129,-150.0,0.00021973,4]
[349806925,1737437451140,-150.60025099,0.00021973,4]
[349806926,1737437451149,-322887.60160975,0.0002198,2]
[349806927,1737437451158,-430245.2735329,0.00021988,2]
[349806928,1737437451167,-104181.93292696,0.0002199,2]
[349806929,1737437451176,-106689.68408725,0.0002199,14]
[349806930,1737437451186,-200.0,0.0002199,8]
[349806931,1737437451194,-500.0,0.00021994,2]
[349806932,1737437451203,-500.0,0.00021994,2]
[349806933,1737437451211,-336.70705602,0.00021994,2]
[349806934,1737437451220,-570.81763342,0.00021994,2]
[349806935,1737437451228,-500.0,0.00021994,2]
[349806936,1737437451237,-500.0,0.00021994,2]
[349806937,1737437451246,-491.75515282,0.00021994,2]
[349806938,1737437451255,-500.0,0.00021994,2]
[349806939,1737437451264,-500.0,0.00021994,2]
[349806940,1737437451273,-500.0,0.00021994,2]
[349806941,1737437451282,-734.47,0.00021994,2]
[349806942,1737437451290,-500.0,0.00021994,2]
[349806943,1737437451299,-500.0,0.00021994,2]
[349806944,1737437451308,-991.62,0.00021994,2]
[349806945,1737437451317,-500.0,0.00021994,2]
[349806946,1737437451326,-500.0,0.00021994,2]
[349806947,1737437451336,-500.0,0.00021994,2]
[349806948,1737437451345,-710.21,0.00021994,2]
[349806949,1737437451354,-525.35,0.00021994,2]
[349806950,1737437451363,-1216.28,0.00021994,2]
[349806951,1737437451372,-500.0,0.00021994,2]
[349806952,1737437451382,-569.61,0.00021994,2]
[349806953,1737437451391,-812.52,0.00021994,2]
[349806954,1737437451401,-500.0,0.00021994,2]
[349806955,1737437451410,-802.13,0.00021994,2]
[349806956,1737437451419,-150.0,0.00021994,2]
[349806957,1737437451427,-500.0,0.00021994,2]
[349806958,1737437451437,-500.0,0.00021994,2]
[349806959,1737437451445,-500.0,0.00021994,2]
[349806960,1737437451454,-500.0,0.00021994,2]
[349806961,1737437451463,-627.96356762,0.00021995,2]
[349806962,1737437451472,-500.0,0.00021995,2]
[349806963,1737437451480,-500.0,0.00021995,2]
[349806964,1737437451489,-500.0,0.00021995,2]
[349806965,1737437451498,-500.0,0.00021995,2]
[349806966,1737437451507,-670.49,0.00021995,2]
[349806967,1737437451516,-500.0,0.00021995,2]
[349806968,1737437451524,-500.0,0.00021995,2]
[349806969,1737437451533,-500.0,0.00021995,2]
[349806970,1737437451542,-500.0,0.00021995,2]
[349806971,1737437451551,-500.0,0.00021995,2]
[349806972,1737437451561,-611.27,0.00021995,2]
[349806973,1737437451571,-500.0,0.00021995,2]
[349806974,1737437451581,-170306.39320844,0.00021996,2]
[349806975,1737437451590,-2274.6139836,0.00021997,2]
[349806976,1737437451599,-1123663.35661224,0.00021997,2]
[349806977,1737437451607,-1103.8939492,0.00021997,2]
[349806978,1737437451616,-3998.3953463,0.00021997,2]
[349806979,1737437451625,-3761.2424369,0.00021997,2]
[349806980,1737437451634,-2012.7272145,0.00021997,2]
[349806981,1737437451642,-2232.3497856,0.00021997,2]
[349806982,1737437451651,-395289.22819909,0.00021998,2]
[349806983,1737437451660,-666.0,0.00021998,2]
[349806984,1737437451670,-666.0,0.00021999,2]
[349806985,1737437451679,-332.5799057,0.00021999,2]
[349806986,1737437451689,-500.0,0.00021999,2]
[349806987,1737437451698,-500.0,0.00021999,2]
[349806988,1737437451707,-500.0,0.00021999,2]
[349806989,1737437451716,-500.0,0.00021999,2]
[349806990,1737437451725,-500.0,0.00021999,2]
[349806991,1737437451735,-500.0,0.00021999,2]
[349806992,1737437451744,-521.21416324,0.00021999,2]
[349806993,1737437451753,-1049.0965,0.00021999,2]
[349806994,1737437451762,-500.0,0.00021999,2]
[349806995,1737437451771,-113517.45058512,0.00021999,2]
[349806996,1737437451780,-999.0,0.00021999,2]
[349806997,1737437451789,-1397.1088611,0.00021999,2]
[349806998,1737437451797,-673.59653589,0.00021999,2]
[349806999,1737437451807,-1565.0,0.00021999,2]
[349807000,1737437451817,-220.09225564,0.00021999,2]
[349807001,1737437451826,-5865377.52884018,0.00022,2]
[349807002,1737437452017,-8367.78725956,0.00022,2]
[349807003,1737437452196,-500.0,0.0002018,2]
[349807004,1737437452208,-500.0,0.00020454,2]
[349807005,1737437452218,-191.36,0.00020728,2]
[349807006,1737437452227,-200.0,0.00021732,2]
[349807007,1737437452237,-8908.67278253,0.00022,2]
[349807008,1737437452248,-503.39722701,0.00022,2]
[349807009,1737437452259,-915.34000024,0.00022,2]
[349807010,1737437452290,-364.27886965,0.00014833,2]
[349807011,1737437452301,-263.49205234,0.00014833,2]
[349807012,1737437452513,-1764.09695905,0.00014833,2]
[349807013,1737437452528,-303.369,0.00014833,2]
[349807014,1737437452539,-393.29595266,0.00014833,2]
[349807015,1737437452872,-407.82269628,0.00014833,2]
[349807016,1737437452887,-7476.99964101,0.00014833,2]
[349807017,1737437452906,-830.12969053,0.00014833,2]
[349807026,1737438414101,-176.56684949,0.00014,2]
[349807027,1737438429140,-75.40315051,0.00014,2]
[349807028,1737438429163,-775.45,0.00017578,2]
[349807029,1737438429394,-356.77,0.00019283,2]
[349807030,1737438429420,-192.2304006,0.00019365,2]
[349807031,1737438449262,-248.70732325,0.00018714,2]
[349807032,1737438449284,-250.0,0.00019239,2]
[349807033,1737438449305,-82.29959666,0.00019387,2]
[349807035,1737438534898,154.32,0.00010137,2]
[349807036,1737438574086,-154.32,0.00018065,2]
[349807037,1737438574108,-1398.28305984,0.00019272,2]
[349807044,1737438632290,-101.71694016,0.00019272,2]
[349807045,1737438632300,-250.0,0.00019296,2]
[349807046,1737438632310,-244.45,0.00019322,2]
[349807047,1737438632320,-199.16954624,0.00019365,2]
[349807048,1737438632329,-300.0,0.00019387,2]
[349807049,1737438632339,-658.20115005,0.00019388,2]
[349807050,1737438632351,-2440.57884995,0.00019388,2]
[349807051,1737438632360,-173.91,0.00019465,2]
[349807052,1737438632371,-150.0,0.00019507,2]
[349807053,1737438632380,-250.0,0.00019516,2]
[349807054,1737438632390,-3598.946,0.00019534,2]
[349807055,1737438632399,-547.64919002,0.00019559,2]
[349807056,1737438632409,-1000.0,0.00019637,2]
[349807057,1737438632419,-220.94363124,0.00019637,2]
[349807058,1737438632429,-907.201,0.00019637,2]
[349807059,1737438632439,-23900.0,0.00019639,2]
[349807060,1737438632449,-618.91,0.00019659,30]
[349807061,1737438632459,-981.79,0.00019764,2]
[349807062,1737438632469,-1360.8027,0.00019807,2]
[349807063,1737438632478,-775.45,0.00019842,2]
[349807064,1737438632490,-199.16954624,0.00019881,2]
[349807065,1737438632500,-206.34062125,0.000199,2]
[349807066,1737438632510,-300.0,0.0001998,2]
[349807067,1737438632520,-23992.01509136,0.00019981,2]
[349807068,1737438632533,-6468.31380023,0.00019981,2]
[349807069,1737438637036,-7781.25624522,0.00019387,2]
[349807070,1737438637045,-5711.85270841,0.00019981,2]
[349807071,1737438637055,-1000.0,0.00019981,2]
[349807072,1737438637064,-9312.7,0.0002,3]
[349807073,1737438637073,-311.9583,0.0002008,2]
[349807074,1737438637083,-285.9099,0.0002008,2]
[349807075,1737438637092,-1563.3818,0.0002008,2]
[349807077,1737438637101,-500.0,0.0002018,2]
[349807078,1737438637110,-500.0,0.0002018,2]
[349807080,1737438637119,-500.0,0.0002018,2]
[349807082,1737438637130,-500.0,0.0002018,2]
[349807083,1737438637140,-500.0,0.0002018,2]
[349807084,1737438637150,-500.0,0.0002018,2]
[349807085,1737438637159,-500.0,0.0002018,2]
[349807087,1737438637168,-500.0,0.0002018,2]
[349807089,1737438637178,-500.0,0.0002018,2]
[349807091,1737438637188,-500.0,0.0002018,2]
[349807093,1737438637197,-500.0,0.0002018,2]
[349807095,1737438637208,-500.0,0.0002018,2]
[349807097,1737438637218,-500.0,0.0002018,2]
[349807099,1737438637227,-500.0,0.0002018,2]
[349807101,1737438637237,-500.0,0.0002018,2]
[349807103,1737438637246,-500.0,0.0002018,2]
[349807105,1737438637256,-500.0,0.0002018,2]
[349807107,1737438637265,-500.0,0.0002018,2]
[349807109,1737438637275,-500.0,0.0002018,2]
[349807111,1737438637284,-500.0,0.0002018,2]
[349807113,1737438637293,-337.35284997,0.0002018,2]
[349807115,1737438637302,-500.0,0.0002018,2]
[349807117,1737438637311,-500.0,0.0002018,2]
[349807119,1737438637321,-206.34062122,0.00020186,2]
[349807121,1737438637330,-560.51,0.00020272,2]
[349807123,1737438637339,-327.93062294,0.00020454,2]
[349807125,1737438637349,-500.0,0.00020454,2]
[349807127,1737438637358,-500.0,0.00020454,2]
[349807128,1737438637367,-500.0,0.00020454,2]
[349807129,1737438637377,-500.0,0.00020454,2]
[349807130,1737438637386,-500.0,0.00020454,2]
[349807131,1737438637395,-500.0,0.00020454,2]
[349807132,1737438637405,-516.93130248,0.00020454,2]
[349807133,1737438637414,-500.0,0.00020454,2]
[349807134,1737438637423,-500.0,0.00020454,2]
[349807135,1737438637432,-500.0,0.00020454,2]
[349807136,1737438637443,-500.0,0.00020454,2]
[349807137,1737438637453,-500.0,0.00020454,2]
[349807138,1737438637462,-500.0,0.00020454,2]
[349807139,1737438637473,-500.0,0.00020454,2]
[349807140,1737438637482,-500.0,0.00020454,2]
[349807141,1737438637495,-500.0,0.00020454,2]
[349807142,1737438637505,-206.34062122,0.00020471,2]
[349807143,1737438637514,-158.268094,0.00020494,2]
[349807144,1737438637699,-162.67,0.0002054,2]
[349807145,1737438637709,-6054.62395363,0.00020698,2]
[349807146,1737438637718,-500.0,0.00020728,2]
[349807147,1737438637727,-500.0,0.00020728,2]
[349807148,1737438637737,-589.79836745,0.00020728,2]
[349807149,1737438637746,-500.0,0.00020728,2]
[349807150,1737438637757,-222.46,0.00020728,2]
[349807151,1737438637767,-500.0,0.00020728,2]
[349807152,1737438637776,-500.0,0.00020728,2]
[349807153,1737438637786,-500.0,0.00020728,2]
[349807154,1737438637795,-500.0,0.00020728,2]
[349807155,1737438637804,-500.0,0.00020728,2]
[349807156,1737438637813,-206.34062122,0.00020757,2]
[349807158,1737438637823,-6287.5726,0.00020798,2]
[349807160,1737438637832,-5912.5120756,0.00020798,2]
[349807161,1737438637853,-1002.4156244,0.00020798,2]
[349807162,1737438637863,-15.3843756,0.00020832,2]
[349807163,1737438637875,-3172.50000046,0.00020832,2]
[349807164,1737438637886,-2866.73957751,0.00020832,2]
[349807166,1737438637895,-152.0,0.00020835,3]
[349807168,1737438637906,-161.19,0.000209,2]
[349807169,1737438637916,-1000.0,0.00020901,2]
[349807170,1737438637925,-2500.0,0.00020901,2]
[349807171,1737438637934,-9456.0,0.00020962,2]
[349807172,1737438637944,-6054.62395357,0.00020965,2]
[349807173,1737438637953,-454.24441694,0.0002099,2]
[349807174,1737438637963,-500.0,0.00021,2]
[349807175,1737438637974,-500.0,0.00021,2]
[349807176,1737438637983,-500.0,0.00021,2]
[349807177,1737438637993,-500.0,0.00021,2]
[349807178,1737438638002,-154.967888,0.00021,2]
[349807179,1737438638011,-500.0,0.00021,2]
[349807180,1737438638020,-389.91,0.00021,2]
[349807181,1737438638029,-500.0,0.00021,2]
[349807182,1737438638038,-500.0,0.00021,2]
[349807183,1737438638047,-500.0,0.00021,2]
[349807184,1737438638056,-192.687139,0.00021,2]
[349807185,1737438638066,-500.0,0.00021,2]
[349807186,1737438638075,-500.0,0.00021,2]
[349807187,1737438638084,-511.84,0.00021,2]
[349807188,1737438638093,-500.0,0.00021,2]
[349807189,1737438638103,-581.86,0.00021,2]
[349807190,1737438638112,-500.0,0.00021,2]
[349807191,1737438638122,-500.0,0.00021,2]
[349807192,1737438638132,-500.0,0.00021,2]
[349807193,1737438638141,-500.0,0.00021,2]
[349807194,1737438638151,-874.89,0.00021,2]
[349807195,1737438638160,-500.0,0.00021,2]
[349807196,1737438638170,-800.74,0.00021,2]
[349807197,1737438638179,-907.52,0.00021,2]
[349807198,1737438638188,-500.0,0.00021,2]
[349807199,1737438638197,-519.83565101,0.00021,2]
[349807200,1737438638208,-500.0,0.00021,2]
[349807201,1737438638217,-500.0,0.00021,2]
[349807202,1737438638227,-500.0,0.00021,2]
[349807203,1737438638237,-500.0,0.00021,2]
[349807204,1737438638247,-921.66,0.00021,2]
[349807205,1737438638257,-500.0,0.00021,2]
[349807206,1737438638266,-500.0,0.00021,2]
[349807207,1737438638276,-500.0,0.00021,2]
[349807208,1737438638285,-500.0,0.00021,2]
[349807209,1737438638294,-500.0,0.00021,2]
[349807210,1737438638304,-500.0,0.00021,2]
[349807211,1737438638313,-500.0,0.00021,2]
[349807212,1737438638322,-500.0,0.00021,2]
[349807213,1737438638331,-382.50694958,0.00021,2]
[349807214,1737438638340,-500.0,0.00021,2]
[349807215,1737438638350,-500.0,0.00021,2]
[349807216,1737438638359,-500.0,0.00021,2]
[349807217,1737438638368,-500.0,0.00021,2]
[349807218,1737438638379,-500.0,0.00021,2]
[349807219,1737438638388,-500.0,0.00021,2]
[349807220,1737438638397,-500.0,0.00021,2]
[349807221,1737438638406,-500.0,0.00021,2]
[349807222,1737438638415,-500.0,0.00021,2]
[349807223,1737438638425,-500.0,0.00021,2]
[349807224,1737438638434,-500.0,0.00021,2]
[349807225,1737438638444,-500.0,0.00021,2]
[349807226,1737438638454,-500.0,0.00021,2]
[349807227,1737438638464,-614.21,0.00021,2]
[349807228,1737438638474,-500.0,0.00021,2]
[349807229,1737438638486,-500.0,0.00021,2]
[349807230,1737438638496,-500.0,0.00021,2]
[349807231,1737438638505,-425.88040873,0.00021,2]
[349807232,1737438638514,-500.0,0.00021,2]
[349807234,1737438638525,-278.28051753,0.00021,2]
[349807236,1737438638534,-500.0,0.00021,2]
[349807238,1737438638544,-500.0,0.00021,2]
[349807240,1737438638553,-500.0,0.00021,2]
[349807242,1737438638562,-500.0,0.00021,2]
[349807244,1737438638572,-500.0,0.00021,2]
[349807246,1737438638582,-500.0,0.00021,2]
[349807248,1737438638591,-500.0,0.00021,2]
[349807250,1737438638600,-18.44465951,0.00021,2]
[349807255,1737438638644,-602.04696902,0.00021,2]
[349807258,1737438638665,-19.67837147,0.00021,2]
[349807259,1737438638674,-231.08588479,0.00021,2]
[349807260,1737438638717,-316.86411521,0.00021,2]
[349807261,1737438638726,-500.0,0.00021,2]
[349807262,1737438638735,-500.0,0.00021,2]
[349807263,1737438638745,-500.0,0.00021,2]
[349807264,1737438638754,-500.0,0.00021001,2]
[349807265,1737438638763,-500.0,0.00021001,2]
[349807266,1737438638772,-420.24615891,0.00021001,2]
[349807267,1737438638781,-269.47,0.00021001,2]
[349807268,1737438638791,-500.0,0.00021001,2]
[349807269,1737438638799,-500.0,0.00021001,2]
[349807270,1737438638809,-500.0,0.00021001,2]
[349807271,1737438638818,-605.37537085,0.00021001,2]
[349807272,1737438638827,-308.46439824,0.00021001,2]
[349807273,1737438638836,-500.0,0.00021001,2]
[349807274,1737438638845,-500.0,0.00021001,2]
[349807275,1737438638854,-500.0,0.00021001,2]
[349807276,1737438638864,-500.0,0.00021001,2]
[349807277,1737438638872,-438.53,0.00021001,2]
[349807279,1737438638882,-500.0,0.00021001,2]
[349807281,1737438638891,-599.94,0.00021001,2]
[349807283,1737438638900,-500.0,0.00021001,2]
[349807285,1737438638909,-563.22,0.00021001,2]
[349807287,1737438638919,-500.0,0.00021001,2]
[349807289,1737438638928,-311.03,0.00021001,2]
[349807291,1737438638938,-500.0,0.00021001,2]
[349807293,1737438638946,-194.51,0.00021001,2]
[349807295,1737438638955,-157.15,0.00021001,2]
[349807297,1737438638964,-500.0,0.00021001,2]
[349807299,1737438638973,-500.0,0.00021001,2]
[349807301,1737438638986,-308.87,0.00021001,2]
[349807303,1737438638995,-278.97,0.00021001,2]
[349807305,1737438639004,-500.0,0.00021001,2]
[349807307,1737438639014,-500.0,0.00021001,2]
[349807309,1737438639023,-208.38,0.00021001,2]
[349807311,1737438639032,-513.85759688,0.00021001,2]
[349807313,1737438639041,-500.0,0.00021001,2]
[349807315,1737438639050,-500.0,0.00021001,2]
[349807317,1737438639059,-515.85307302,0.00021001,2]
[349807319,1737438639069,-500.0,0.00021001,2]
[349807321,1737438639079,-500.0,0.00021001,2]
[349807323,1737438639090,-693.25,0.00021001,2]
[349807325,1737438639100,-500.0,0.00021001,2]
[349807326,1737438639109,-500.0,0.00021001,2]
[349807327,1737438639119,-500.0,0.00021001,2]
[349807328,1737438639130,-395.76222254,0.00021001,2]
[349807329,1737438639140,-997.35,0.00021001,2]
[349807330,1737438639149,-500.0,0.00021001,2]
[349807331,1737438639159,-500.0,0.00021001,2]
[349807332,1737438639168,-500.0,0.00021001,2]
[349807333,1737438639178,-500.0,0.00021001,2]
[349807334,1737438639187,-500.0,0.00021001,2]
[349807335,1737438639196,-500.0,0.00021001,2]
[349807336,1737438639205,-600.81,0.00021001,2]
[349807337,1737438639215,-553.48,0.00021001,2]
[349807338,1737438639225,-189.66105742,0.00021001,2]
[349807339,1737438639234,-500.0,0.00021001,2]
[349807340,1737438639244,-1032.9,0.00021001,2]
[349807341,1737438639254,-500.0,0.00021001,2]
[349807342,1737438639264,-500.0,0.00021001,2]
[349807343,1737438639274,-500.0,0.00021001,2]
[349807344,1737438639283,-500.0,0.00021001,2]
[349807345,1737438639293,-500.0,0.00021001,2]
[349807346,1737438639302,-320.15,0.00021001,2]
[349807347,1737438639311,-500.0,0.00021001,2]
[349807348,1737438639322,-500.0,0.00021001,2]
[349807349,1737438639331,-667.1,0.00021001,2]
[349807350,1737438639340,-500.0,0.00021001,2]
[349807351,1737438639350,-500.0,0.00021001,2]
[349807352,1737438639359,-500.0,0.00021001,2]
[349807353,1737438639368,-500.0,0.00021001,2]
[349807354,1737438639378,-500.0,0.00021001,2]
[349807355,1737438639387,-716.58,0.00021001,2]
[349807356,1737438639397,-566.28211598,0.00021001,2]
[349807357,1737438639406,-500.0,0.00021001,2]
[349807358,1737438639415,-500.0,0.00021001,2]
[349807359,1737438639424,-500.0,0.00021001,2]
[349807360,1737438639433,-500.0,0.00021001,2]
[349807361,1737438639443,-622.67,0.00021001,2]
[349807362,1737438639452,-500.0,0.00021001,2]
[349807363,1737438639461,-500.0,0.00021001,2]
[349807364,1737438639471,-500.0,0.00021001,2]
[349807365,1737438639481,-500.0,0.00021001,2]
[349807366,1737438639491,-500.0,0.00021001,2]
[349807367,1737438639501,-500.0,0.00021001,2]
[349807368,1737438639510,-500.0,0.00021001,2]
[349807369,1737438639519,-500.0,0.00021001,2]
[349807370,1737438639528,-516.74,0.00021001,2]
[349807371,1737438639538,-500.0,0.00021001,2]
[349807372,1737438639548,-500.0,0.00021001,2]
[349807373,1737438639559,-500.0,0.00021002,2]
[349807374,1737438639571,-500.0,0.00021002,2]
[349807375,1737438639580,-500.0,0.00021002,2]
[349807376,1737438639589,-500.0,0.00021002,2]
[349807377,1737438639598,-500.0,0.00021002,2]
[349807378,1737438639607,-500.0,0.00021002,2]
[349807379,1737438639616,-500.0,0.00021002,2]
[349807380,1737438639627,-206.34062122,0.00021043,2]
[349807381,1737438639637,-6054.62395357,0.00021099,2]
[349807382,1737438639646,-420.0,0.00021123,2]
[349807383,1737438639656,-500.0,0.00021136,2]
[349807384,1737438639665,-500.0,0.00021136,2]
[349807385,1737438639674,-500.0,0.00021136,2]
[349807386,1737438639683,-500.0,0.00021136,2]
[349807387,1737438639693,-595.27,0.00021136,2]
[349807388,1737438639703,-554.76,0.00021136,2]
[349807389,1737438639712,-500.0,0.00021136,2]
[349807390,1737438639721,-525.82,0.00021136,2]
[349807391,1737438639731,-500.0,0.00021136,2]
[349807392,1737438639740,-557.31,0.00021136,2]
[349807393,1737438639751,-194.59916435,0.00021175,2]
[349807394,1737438639760,-5000.0,0.00021175,2]
[349807395,1737438639770,-6054.62395357,0.00021232,2]
[349807396,1737438639779,-228.72357182,0.00021274,2]
[349807397,1737438639789,-500.0,0.00021274,2]
[349807398,1737438639799,-154.967888,0.00021274,2]
[349807399,1737438639808,-500.0,0.00021274,2]
[349807400,1737438639818,-500.0,0.00021274,2]
[349807401,1737438639829,-500.0,0.00021274,2]
[349807402,1737438639838,-500.0,0.00021274,2]
[349807403,1737438639848,-192.687139,0.00021274,2]